Workbook

Sheet Einzelunternehmer_Einzelgmbh
A1: Tagessatzberechnung Einzelunternehmer | B1: Beispielrechnung Einzelunternehmer | C1: eigene Berechnung Einzelunternehmer
A3: laufende Betriebskosten pro Jahr
A4: Büromiete | B4: 12000 | C4: 12000
A5: Telefon, Internet | B5: 250 | C5: 250
A6: Büroausstattung (jährlich) | B6: 500 | C6: 500
A7: Akquisition | B7: 3000 | C7: 3000
A8: Werbematerial | B8: 200 | C8: 200
A9: Weiterbildungskosten | B9: 1000 | C9: 1000
A10: Sozialversicherung/ Verdienstausfall | B10: 12000 | C10: 12000
A11: Versicherungen | B11: 0 | C11: 0
A12: Steuerberatung | B12: 6000 | C12: 6000
A13: Administration ohne Verdienstausfall | B13: 3000 | C13: 3000
A14: Marketingkosten | B14: 3000 | C14: 3000
A15: Mobilitätskosten | B15: 5000 | C15: 5000
A16: Reisenebenkosten | B16: 1000 | C16: 1000
A17: Summe laufende Betriebskosten pro Jahr | B17: =SUM(B4:B16) -> 46950 | C17: =SUM(C4:C16) -> 46950
A19: Grundannahmen pro Jahr | B19: Beispielrechnung Einzelunternehmer2 | C19: eigene Berechnung Einzelunternehmer
A20: eigene Rücklagen | B20: =Daten!$B$2 -> -300000 | C20: =Daten!$C$2 -> -300000
A21: monatliche Zielrente Netto | B21: =Daten!$B$3 -> 2500 | C21: =Daten!$C$3 -> 2500
A22: notwendige Rücklagen für Rente Netto | B22: =B21*12*Daten!$B$10 -> 900000 | C22: =C21*12*Daten!$C$10 -> 900000
A23: notwendige Rücklagen für Rente Brutto | B23: =B22*1/(100%-Daten!$B$5) -> 1200000 | C23: =C22*1/(100%-Daten!$C$5) -> 1200000
A24: Jahreszieleinkommen Netto | B24: =Daten!$B$4 -> 100000 | C24: =Daten!$C$4 -> 100000
A25: Jahreszieleinkommen Brutto | B25: =B24*1/(100%-Daten!$B$6) -> 142857.1429 | C25: =C24*1/(100%-Daten!$C$6) -> 142857.1429
A26: Zuzüglich laufende jährliche Betriebskosten netto | B26: =B17 -> 46950 | C26: =C17 -> 46950
A27: zu erwirtschaftender Umsatz Brutto/ Jahr | B27: =B25+B26 -> 189807.1429 | C27: =C25+C26 -> 189807.1429
A28: zu erwirtschaftender Umsatz Brutto Arbeitsleben | B28: =B20+B23+B27*Daten!$B$9 -> 5645178.571 | C28: =C20+C23+C27*Daten!$C$9 -> 5645178.571
A29: Tagessatz Brutto | B29: =B28/Daten!$B$8/(Daten!$B$11*Daten!$B$12) -> 2822.589286 | C29: =C28/Daten!$B$8/(Daten!$B$11*Daten!$B$12) -> 2822.589286

Sheet GmbH
A1: Beispielrechnung GmbH | B1: Beispielrechnung | C1: eigene Rechnung
A2: GmbH | B2: Nullsumme
A4: laufende Betriebskosten pro Jahr
A5: Büromiete | B5: 40000 | C5: 40000
A6: Telefon, Internet | B6: =12*200 -> 2400 | C6: =12*200 -> 2400
A7: Büroausstattung (jährlich) | B7: 5000 | C7: 5000
A8: Akquisition | B8: 10000 | C8: 10000
A9: Werbematerial | B9: 10000 | C9: 10000
A10: Weiterbildungskosten ohne Verdienstausfall | B10: =Daten!$B$15*4000 -> 40000 | C10: =Daten!$B$15*4000 -> 40000
A11: Versicherungen | B11: 2000 | C11: 2000
A12: Steuerberatung | B12: 10000 | C12: 10000
A13: Marketingkosten | B13: 10000 | C13: 10000
A14: Mobilitätskosten | B14: 30000 | C14: 30000
A15: Reisenebenkosten | B15: 15000 | C15: 15000
A16: Summe laufende Betriebskosten pro Jahr | B16: =SUM(B5:B15) -> 174400 | C16: =SUM(C5:C15) -> 174400
A18: Grundannahmen pro Jahr | B18: Beispielrechnung | C18: eigene Rechnung
A19: Personalkosten nicht fakturierbare Mitarbeiter | B19: =Daten!$B$23 -> 80000 | C19: =Daten!$C$23 -> 80000
A20: Personalkosten fakturierbare Mitarbeiter | B20: =Daten!$B$21 -> 500000 | C20: =Daten!$C$21 -> 500000
A21: Personalnebenkosten | B21: =(Daten!$B$23+Daten!$B$21)*Daten!$B$26 -> 279270 | C21: =(Daten!$C$23+Daten!$C21)*Daten!$C$26 -> 279270
A22: laufende Betriebskosten pro Jahr | B22: =B16 -> 174400 | C22: =C16 -> 174400
A23: Insolvenzgeldumlage | B23: =Daten!$B$24*(Daten!$B$21+Daten!$B$23) -> 696 | C23: =Daten!$C$24*(Daten!$C$21+Daten!$C$23) -> 696
A24: zu erwirtschaftender Unsatz netto | B24: =SUM(B19:B23) -> 1034366 | C24: =SUM(C19:C23) -> 1034366
A25: zu erwirtschaftender Umsatz Brutto pro Jahr | B25: =B24*1/(100%-Daten!$B$30) -> 1477665.714 | C25: =C24*1/(100%-Daten!$C$30) -> 1477665.714
A26: zu erwirtschaftender Umsatz Brutto in 10 Jahren | B26: =B25*10 -> 14776657.14 | C26: =C25*10 -> 14776657.14
A27: zu erwirtschaftender Umsatz Brutto in 8 Jahren für 10 Jahre | B27: =B26/8*10 -> 18470821.43 | C27: =C26/8*10 -> 18470821.43
A28: durchschnittlicher Tagessatz | B28: =B27/8/Daten!$B$19*Daten!B20 -> 1443.032924 | C28: =C27/8/Daten!$C$19*Daten!$C$20 -> 1443.032924

Sheet Daten
A1: Einzelunternehmer | B1: Beispielrechnung
A2: eigene Rücklagen | B2: -300000 | C2: -300000
A3: monatliche Zielrente Netto | B3: 2500 | C3: 2500
A4: Jahreszieleinkommen | B4: 100000 | C4: 100000
A5: durchschittlicher Steuersatz Rente | B5: 0.25 | C5: 0.25
A6: durchschittlicher Steuersatz Einkommen | B6: 0.3 | C6: 0.3
A7: Gewerbesteuer | B7: 0.3 | C7: 0.3
A8: Anzahl Berufsjahre bis zur Rente Netto | B8: 20 | C8: 20
A9: Anzahl Arbeitsjahre bis zur Rente (8 von 10) | B9: =B8/80% -> 25 | C9: =C8/80% -> 25
A10: Lebenserwartung nach Renteneintritt | B10: 30 | C10: 30
A11: Anzahl möglicher Arbeitstage pro Jahr | B11: 200 | C11: 200
A12: fakturierbarer Anteil (200*x%)/ Person | B12: 0.5 | C12: 0.5
A14: GmbH
A15: Anzahl Mitarbeiter | B15: 10 | C15: 10
A16: Fakturierbare Mitarbeiter
A17: Anzahl Mitarbeiter | B17: 8 | C17: 8
A18: Anzahl möglicher Arbeitstage pro Jahr | B18: 200 | C18: 200
A19: Anzahl fakturierbare Tage (200*x%)/ Person | B19: =B18*B17*B20 -> 1120 | C19: =C18*C17*C20 -> 1120
A20: fakturierbarer Anteil (200*x%)/ Person | B20: 0.7 | C20: 0.7
A21: Personalkosten | B21: 500000 | C21: 500000
A22: Nichtfakturierbare Mitarbeiter
A23: Personalkosten | B23: 80000 | C23: 80000
A24: Insolvenzgeldumlage | B24: 0.0012 | C24: 0.0012
A26: Personalnebenkosten | B26: =SUM(B27:B30) -> 0.4815 | C26: =SUM(C27:C30) -> 0.4815
A27: KV | B27: 0.073 | C27: 0.073
A28: RV | B28: 0.0935 | C28: 0.0935
A29: AL | B29: 0.015 | C29: 0.015
A30: Gewerbesteuersatz | B30: 0.3 | C30: 0.3
